bitfinex/quotes_ETHUSD_20250214
["timestamp","ask_amount","ask_price","bid_price","bid_amount"]
[1739558107218,5.39,2772.3,2771.4,0.776]
[1739558107524,0.7555,2772.8,2772.1,3.60726]
[1739558107728,3.60635,2772.9,2772.4,3.0]
[1739558108022,0.55,2772.7,2772.4,3.0]
[1739558108318,3.60648,2772.8,2772.2,4.045556]
[1739558108894,3.60636,2772.9,2772.2,4.045556]
[1739558109419,0.55,2772.7,2772.2,0.438326]
[1739558109633,0.55,2772.5,2771.9,3.0]
[1739558109839,0.7555,2772.6,2771.8,3.60774]
[1739558109840,0.55,2772.3,2771.8,3.60774]
[1739558110018,0.55,2772.3,2771.9,3.6076]
[1739558110212,0.55,2772.3,2772.0,3.60741]
[1739558110513,9.17752644,2773.1,2772.3,0.776]
[1739558110514,5.39,2773.1,2772.3,0.776]
[1739558110692,5.39,2773.1,2772.8,3.60639]
[1739558110891,5.39,2773.2,2772.7,3.60646]
[1739558111224,5.39,2773.2,2772.5,3.60677]
[1739558111392,3.60629,2773.0,2772.5,0.438277]
[1739558111733,0.55,2772.9,2772.5,0.438277]
[1739558111939,0.55,2772.7,2772.3,0.776]
[1739558112801,0.55,2772.7,2772.3,3.776]
[1739558113584,0.55,2772.6,2772.3,3.0]
[1739558113989,0.55,2772.7,2771.6,6.60795]
[1739558114230,3.60771,2771.9,2771.6,0.889795]
[1739558114430,0.55,2771.8,2771.4,7.99247]
[1739558114602,0.55,2771.9,2771.4,3.776]
[1739558114791,0.55,2771.9,2771.4,0.776]
[1739558114988,3.60778,2771.8,2771.4,0.776]
[1739558115225,0.55,2771.9,2771.4,0.776]
[1739558115408,4.15772,2771.9,2771.4,4.38427]
[1739558115616,0.55,2771.9,2771.5,3.0]
[1739558116715,0.55,2771.9,2771.5,6.60811]
[1739558116917,0.55,2771.9,2771.4,1.93171959]
[1739558117121,0.55,2771.7,2771.3,3.0]
[1739558117622,0.55,2771.7,2771.3,6.60834]
[1739558118342,0.55,2771.8,2771.4,3.60824]
[1739558118505,0.55,2771.8,2771.5,0.03607746]
[1739558118715,0.55,2771.8,2771.3,3.60841]
[1739558119029,0.55,2771.8,2771.4,6.60827]
[1739558119235,0.55,2771.8,2771.3,1.099304]
[1739558119434,0.55,2771.5,2771.1,0.776]
[1739558119605,4.15842,2771.3,2770.8,4.38505]
[1739558119940,0.55,2771.3,2770.9,3.60893]
[1739558120311,0.55,2771.3,2771.0,3.0]
[1739558120508,3.60835,2771.4,2770.4,0.56402757]
[1739558120509,0.55,2770.8,2770.4,0.56402757]
[1739558120735,0.55,2770.9,2770.0,6.38607]
[1739558121078,0.55,2770.9,2770.4,3.60946]
[1739558121238,4.36409,2771.2,2770.1,0.638607]
[1739558121239,0.55,2771.1,2770.1,0.638607]
[1739558121406,0.55,2771.1,2770.6,3.60925]
[1739558121609,0.55,2771.1,2770.1,3.638607]
[1739558121930,7.21724,2771.2,2770.6,6.60929]
[1739558122131,0.55,2771.1,2770.7,0.660929]
[1739558122431,3.60843,2771.3,2770.8,3.60903]
[1739558122632,0.55,2771.2,2771.0,3.60879]
[1739558122839,0.55,2771.2,2771.0,3.60872]
[1739558123039,0.55,2771.2,2771.0,4.34954061]
[1739558123242,0.55,2771.3,2771.0,0.74082061]
[1739558123397,0.55,2771.1,2770.7,3.660929]
[1739558123736,6.2007,2771.5,2770.7,3.660929]
[1739558123737,6.2007,2771.5,2770.7,0.660929]
[1739558123904,9.80885,2771.5,2771.0,3.60873]
[1739558124400,0.55,2771.4,2771.0,3.60873]
[1739558125436,0.55,2771.4,2771.1,3.0]
[1739558125650,5.39,2771.5,2771.2,3.60847]
[1739558125862,4.41853,2771.8,2771.3,3.0]
[1739558125863,0.55,2771.7,2771.3,3.0]
[1739558126163,3.60806,2771.6,2771.3,3.0]
[1739558126367,5.39,2771.8,2771.1,0.03607987]
[1739558126568,5.39,2772.0,2771.7,3.60789]
[1739558126770,5.39,2772.0,2771.6,3.60799]
[1739558126931,8.99758,2772.0,2771.5,3.0]
[1739558127131,8.99758,2772.0,2771.2,3.60851]
[1739558127132,0.55,2771.7,2771.3,3.0]
[1739558127333,0.55,2771.7,2771.3,3.660851]
[1739558128069,0.55,2771.7,2771.3,3.0]
[1739558128627,8.99757,2772.0,2771.2,3.60849]
[1739558128628,0.55,2771.9,2771.2,3.60849]
[1739558128971,8.99757,2772.0,2771.7,3.60789]
[1739558128972,5.39,2772.0,2771.7,3.60789]
[1739558129273,5.39,2772.0,2771.6,3.0]
[1739558129474,4.15763,2771.9,2771.4,3.7634]
[1739558129630,4.96833,2771.9,2771.4,6.60817]
[1739558129978,1.3607,2771.9,2771.6,3.60794]
[1739558130185,0.55,2771.9,2771.6,3.60794]
[1739558130538,0.55,2771.9,2771.6,3.60801]
[1739558130743,0.55,2771.9,2771.6,3.0]
[1739558131051,4.15764,2771.9,2771.6,3.0]
[1739558131257,0.55,2771.9,2771.8,35.0]
[1739558131842,5.39,2772.0,2771.8,38.60769]
[1739558132175,5.39,2772.0,2771.8,7.23245439]
[1739558132467,5.39,2772.0,2771.6,7.37133]
[1739558132468,5.39,2772.0,2771.9,38.60763]
[1739558133024,0.8107,2772.6,2772.2,3.60713]
[1739558133437,5.39,2772.8,2772.2,3.60713]
[1739558133438,6.2007,2772.8,2772.2,3.60713]
[1739558133768,8.99646,2772.8,2772.7,35.0]
[1739558133972,10.35716,2772.8,2772.7,35.0]
[1739558135068,3.60771,2771.9,2771.4,0.7634]
[1739558135234,0.55,2771.8,2771.3,3.60833]
[1739558135437,0.55,2771.8,2771.4,3.0]
[1739558135663,4.15785,2771.8,2771.4,3.0]
[1739558135987,0.55,2771.5,2771.1,3.60859]
[1739558136470,0.55,2771.3,2770.9,3.60889]
[1739558136776,0.55,2771.3,2770.9,0.5033219]
[1739558136980,0.0877155,2771.2,2770.9,0.5033219]
[1739558137278,0.55,2771.3,2770.9,3.60891]
[1739558137443,0.0874862,2771.1,2770.9,3.60891]
[1739558137649,0.55,2771.3,2771.0,35.0]
[1739558138080,0.55,2771.3,2770.9,3.60889]
[1739558138453,0.55,2771.3,2771.2,35.0]
[1739558139039,5.39,2771.5,2771.3,3.0]
[1739558139238,5.39,2771.8,2771.5,3.0]
[1739558139551,8.9977,2771.9,2771.4,3.7877]
[1739558139752,0.08756606,2771.8,2771.4,3.7877]
[1739558140283,4.24534606,2771.8,2771.7,35.0]
[1739558140838,0.63756606,2771.8,2771.7,35.0]
[1739558141239,4.24532606,2771.8,2771.7,35.0]
[1739558141438,5.02482606,2771.8,2771.7,35.0]
[1739558144767,1.41706606,2771.8,2771.7,35.0]
[1739558144973,0.08756606,2771.8,2771.7,35.0]
[1739558145278,3.69532606,2771.8,2771.7,35.0]
[1739558145982,4.24532606,2771.8,2771.7,35.0]
[1739558146277,5.02482606,2771.8,2771.7,35.0]
[1739558146480,0.63756606,2771.8,2771.7,35.0]
[1739558147143,4.24532606,2771.8,2771.7,35.0]
[1739558147555,5.02482606,2771.8,2771.7,35.0]
[1739558151204,10.41482606,2771.8,2771.7,35.0]
[1739558153455,3.60832,2771.4,2770.8,3.0]
[1739558153683,0.55,2771.1,2770.9,0.660914]
[1739558153891,4.15872,2771.1,2770.7,3.0]
[1739558154092,4.15872,2771.1,2771.0,35.0]
[1739558154668,9.54872,2771.1,2771.0,35.0]
[1739558155609,14.08359973,2771.1,2771.0,35.0]
[1739558155767,10.30382,2771.1,2771.0,35.0]
[1739558156290,10.38241366,2771.1,2771.0,35.0]
[1739558157068,11.11595814,2771.1,2771.0,35.0]
[1739558158200,9.07731366,2771.1,2771.0,35.0]
[1739558158976,9.62731366,2771.1,2771.0,35.0]
[1739558162007,9.80887205,2771.1,2771.0,35.0]
[1739558162713,9.07731366,2771.1,2771.0,35.0]
[1739558162884,9.07726366,2771.1,2771.0,35.0]
[1739558163207,9.62726366,2771.1,2771.0,35.0]
[1739558164321,9.62726366,2771.1,2770.0,3.61007]
[1739558164322,3.60958,2770.4,2769.9,0.8083]
[1739558164475,0.55,2770.3,2770.0,3.0]
[1739558164675,0.55,2770.4,2770.0,6.61006]
[1739558165121,0.55,2770.4,2769.9,4.86031]
[1739558165122,0.55,2770.2,2769.9,1.25016]
[1739558165291,0.55,2770.3,2770.1,35.0]
[1739558165490,4.15979,2770.3,2770.1,35.60354777]
[1739558165690,4.15979,2770.3,2770.1,35.0]
[1739558166203,4.15979,2770.3,2769.9,1.25016]
[1739558166570,0.55,2770.3,2769.9,1.25016]
[1739558166917,5.39,2770.4,2770.1,6.60997]
[1739558166918,0.07731829,2770.2,2770.1,6.60997]
[1739558167121,5.39,2770.4,2770.2,6.60978]
[1739558167301,0.1777222,2771.1,2770.3,43.010615]
[1739558167302,5.39,2770.8,2770.3,43.010615]
[1739558167517,5.39,2770.8,2770.5,3.0]
[1739558167700,5.39,2770.8,2770.3,5.010615]
[1739558168081,5.39,2770.8,2770.7,35.0]
[1739558168276,8.99906,2770.8,2770.7,35.0]
[1739558168610,9.54906,2770.8,2770.7,35.0]
[1739558169182,5.94,2770.8,2770.7,35.0]
[1739558169376,5.39,2770.8,2770.7,38.62476439]
[1739558169870,5.94,2770.8,2770.7,38.62476439]
[1739558170319,6.01479396,2770.8,2770.7,38.62476439]
[1739558170480,5.46479396,2770.8,2770.7,41.62476439]
[1739558170680,0.07479396,2770.8,2770.7,46.02325439]
[1739558170998,3.6084,2771.4,2770.8,3.60903]
[1739558171191,0.55,2771.3,2770.9,3.62476439]
[1739558171383,0.62524716,2771.3,2770.8,6.60903]
[1739558171717,0.07524716,2771.3,2771.2,35.7893]
[1739558171907,0.62524716,2771.3,2771.2,38.7893]
[1739558172074,4.15841,2771.3,2771.2,35.0]
[1739558172280,4.93211,2771.3,2771.2,35.0]
[1739558173024,10.32211,2771.3,2771.2,35.0]
[1739558173321,3.60975,2770.3,2769.9,0.7893]
[1739558173523,0.55,2770.2,2769.9,1.229255]
[1739558174119,0.07482388,2770.1,2769.9,4.839475]
[1739558174421,5.39,2770.4,2770.0,41.6101]
[1739558174585,5.39,2770.4,2770.1,3.0]
[1739558174922,5.39,2770.8,2770.5,3.60935]
[1739558175107,5.39,2771.0,2770.6,3.970245]
[1739558175307,5.39,2771.0,2770.7,35.0]
[1739558175683,5.39,2771.0,2770.6,3.970165]
[1739558175684,5.39,2771.0,2770.6,7.579425]
[1739558175916,5.39,2771.0,2770.8,0.7893]
[1739558176228,9.54891,2771.0,2770.9,35.0]
[1739558177585,9.62372195,2771.0,2770.9,35.0]
[1739558179427,10.39742195,2771.0,2770.9,35.0]
[1739558179781,14.1782892,2771.0,2770.9,35.0]
[1739558180785,3.61,2770.1,2769.9,0.7893]
[1739558181227,0.07415806,2770.0,2769.9,0.7893]
[1739558181430,0.07415806,2770.0,2769.9,1.529278]
[1739558181587,0.55,2770.1,2769.9,1.529278]
[1739558181786,0.07415806,2770.0,2769.9,1.529278]
[1739558183983,0.07415806,2770.0,2769.9,8.139508]
[1739558184403,5.39,2770.2,2770.1,7.41187]
[1739558184698,5.46254334,2770.2,2770.1,5.2780888]
[1739558184912,0.07254334,2770.2,2770.1,5.2780888]
[1739558185113,0.07254334,2770.2,2770.1,14.42310145]
[1739558185316,3.60854,2771.2,2770.8,3.0]
[1739558185502,3.60852,2771.3,2770.9,0.8019]
[1739558185708,3.60857,2771.2,2771.0,0.38019]
[1739558185905,3.60861,2771.2,2770.9,0.8019]
[1739558186432,4.15843,2771.3,2770.9,0.8019]
[1739558186737,3.60843,2771.3,2770.9,0.8019]
[1739558186905,0.55,2771.2,2770.9,0.8019]
[1739558187693,0.55,2771.0,2770.3,3.8019]
[1739558187889,0.55,2771.0,2770.6,3.0]
[1739558188534,0.07348355,2770.9,2770.6,3.0]
[1739558189033,0.62348355,2770.9,2770.8,3.0]
[1739558189236,0.07348355,2770.9,2770.8,7.41096]
[1739558189436,7.21645,2771.5,2770.8,8.51658289]
[1739558189739,3.60797,2771.7,2771.1,6.60857]
[1739558189893,3.60797,2771.7,2771.1,3.0]
[1739558189894,0.55,2771.4,2771.1,3.0]
[1739558190604,0.55,2771.4,2770.8,4.90752289]
[1739558190818,0.55,2771.1,2770.8,4.90752289]
[1739558191020,0.55,2771.1,2770.9,0.85165929]
[1739558191217,3.60833,2771.4,2771.0,3.0]
[1739558191421,3.60816,2771.5,2771.0,3.60873]
[1739558192036,0.55,2771.3,2771.0,3.60873]
[1739558192233,0.55,2771.3,2771.1,3.60865]
[1739558192531,0.07378068,2771.2,2771.1,7.41557393]
[1739558192733,0.07378068,2771.2,2771.1,3.80690393]
[1739558192908,4.15854,2771.2,2771.1,3.0]
[1739558193108,4.23242104,2771.2,2771.1,3.0]
[1739558194007,0.62388104,2771.2,2771.1,3.0]
[1739558194323,0.07388104,2771.2,2771.1,6.60867]
[1739558194506,0.07388104,2771.2,2771.1,8.4720074]
[1739558194707,5.39,2771.6,2771.3,3.6083]
[1739558194900,5.39,2771.6,2771.4,3.60826]
[1739558195102,0.07409268,2771.5,2771.4,6.60826]
[1739558195523,5.39,2771.8,2771.4,6.60826]
[1739558195741,0.07409268,2771.5,2771.4,7.28634241]
[1739558195899,0.55,2771.7,2771.4,7.28634241]
[1739558196103,0.07409268,2771.5,2771.4,7.28634241]
[1739558196415,0.55,2771.7,2771.4,7.28634241]
[1739558196609,0.07409268,2771.5,2771.4,7.28634241]
[1739558196824,0.55,2771.7,2771.4,7.28634241]
[1739558197021,0.07409268,2771.5,2771.4,7.28634241]
[1739558197205,0.55,2771.7,2771.4,3.67808241]
[1739558197406,0.07409268,2771.5,2771.4,3.67808241]
[1739558197607,0.55,2771.7,2771.4,3.67808241]
[1739558197836,0.55,2771.7,2770.8,0.7869]
[1739558197837,0.55,2771.4,2770.8,0.7869]
[1739558197999,5.94,2771.4,2770.9,3.60891]
[1739558198196,0.55,2771.2,2771.0,3.0]
[1739558198645,0.07412623,2771.1,2771.0,3.64488482]
[1739558198803,5.39,2771.4,2771.0,3.6088]
[1739558198998,5.39,2771.4,2770.9,6.60892]
[1739558198999,0.07425248,2771.3,2771.2,3.0]
[1739558200132,0.07425248,2771.3,2771.2,6.60854]
[1739558200335,0.07425248,2771.3,2771.2,3.82298245]
[1739558200661,0.07425248,2771.3,2771.2,4.39544]
[1739558200809,0.07425248,2771.3,2771.2,0.7869]
[1739558201957,0.07425248,2771.3,2771.2,3.7869]
[1739558202140,0.07425248,2771.3,2771.2,8.495863]
[1739558206754,3.60776,2771.8,2771.3,3.60836]
[1739558207158,3.60776,2771.8,2771.3,3.60841]
[1739558209373,3.60776,2771.8,2771.2,8.495863]
[1739558209568,3.60776,2771.8,2771.3,3.60835]
[1739558209965,3.60798,2771.7,2771.2,8.495863]
[1739558210471,3.60798,2771.7,2771.3,3.6084]
[1739558210833,4.15776,2771.8,2771.3,3.60833]
[1739558212737,3.60793,2771.7,2771.3,3.60833]
[1739558214345,0.55,2771.8,2771.4,3.60823]
[1739558215376,4.15782,2771.8,2771.4,3.60823]
[1739558216374,4.15782,2771.8,2771.3,3.60839]
[1739558217469,0.55,2771.8,2771.4,3.6082]
[1739558218724,3.60778,2771.8,2771.4,3.6082]
[1739558220169,4.15766,2771.9,2771.4,3.6082]
[1739558220679,3.60778,2771.8,2771.4,3.6082]
[1739558221052,0.55,2771.9,2771.4,7.21635]
[1739558221580,3.60776,2771.8,2771.4,3.60815]
[1739558221742,4.15763,2771.9,2771.5,3.60814]
[1739558222076,4.15763,2771.9,2771.4,3.60815]
[1739558222786,3.60779,2771.8,2771.4,3.60815]
[1739558222984,4.15763,2771.9,2771.4,3.60815]
[1739558224393,3.60776,2771.8,2771.4,3.60815]
[1739558224550,4.15763,2771.9,2771.4,3.60815]
[1739558224890,7.76536,2771.9,2771.4,3.60815]
[1739558225468,8.99779,2771.8,2771.4,3.60815]
[1739558225664,8.99779,2771.8,2771.3,3.60834]
[1739558225881,8.99779,2771.8,2771.4,3.60826]
[1739558226394,5.39,2771.8,2771.4,3.60826]
[1739558227215,8.99779,2771.8,2771.4,3.6082]
[1739558228160,5.39,2771.8,2771.4,3.60819]
[1739558230510,5.39,2771.8,2771.4,1.60819]
[1739558230721,5.39,2771.8,2771.4,3.60819]
[1739558231374,5.39,2771.8,2771.5,3.60805]
[1739558232097,5.39,2771.8,2771.4,7.21638]
[1739558232297,5.39,2771.8,2771.5,3.60813]
[1739558232624,5.39,2771.8,2771.7,6.60789]
[1739558232780,5.39,2771.9,2771.8,7.37006]
[1739558236585,6.1887,2771.9,2771.4,3.60821]
[1739558236798,9.79634,2771.9,2771.4,3.6082]
[1739558236998,0.0682797,2771.8,2771.3,3.60841]
[1739558237172,3.6760597,2771.8,2771.3,3.60841]
[1739558237368,5.39,2771.7,2771.4,3.0]
[1739558237584,5.39,2771.7,2771.3,3.60834]
[1739558237786,0.06817578,2771.6,2771.4,3.60822]
[1739558238435,0.06817578,2771.6,2771.4,3.60828]
[1739558240909,0.06817578,2771.6,2771.4,3.60819]
[1739558241303,0.06817578,2771.6,2771.4,7.2164]
[1739558241511,0.06817578,2771.6,2771.5,3.60815]
[1739558242632,0.06817578,2771.6,2771.5,12.98271689]
[1739558242809,0.06817578,2771.6,2771.5,13.44559204]
[1739558243009,5.39,2771.7,2771.6,6.60802]
[1739558243229,5.39,2772.4,2771.6,7.37532]
[1739558243541,0.06588415,2772.3,2772.0,3.60747]
[1739558244028,0.06588415,2772.3,2772.1,3.60737]
[1739558244327,0.06588415,2772.3,2772.2,3.60724]
[1739558244534,5.45588415,2772.3,2772.2,3.60724]
[1739558245997,5.45588415,2772.3,2772.0,3.6074]
[1739558246392,5.45588415,2772.3,2771.9,6.60757]
[1739558246921,5.45588415,2772.3,2772.0,3.60749]
[1739558247935,5.45588415,2772.3,2771.5,0.7673]
[1739558248234,0.7562,2771.8,2771.4,3.60825]
[1739558248610,0.06590758,2771.7,2771.4,3.60825]
[1739558248802,5.45590758,2771.7,2771.4,3.60825]
[1739558248999,5.39,2771.7,2771.4,3.60825]
[1739558249202,0.06584447,2771.6,2771.4,3.60825]
[1739558250304,0.06584447,2771.6,2771.3,3.0]
[1739558250758,0.06584447,2771.6,2771.3,6.60834]
[1739558251429,0.06584447,2771.6,2771.5,35.0]
[1739558252138,5.45584447,2771.6,2771.5,35.0]
[1739558255975,5.45584447,2771.6,2771.5,38.60815]
[1739558256177,5.45584447,2771.6,2771.5,35.0]
[1739558256447,5.39,2771.6,2771.5,35.0]
[1739558256826,5.45584447,2771.6,2771.5,38.60815]
[1739558257027,5.45584447,2771.6,2771.5,42.23291439]
[1739558257439,5.39,2771.6,2771.5,42.23291439]
[1739558257662,5.45314469,2771.6,2771.5,38.62476439]
[1739558257817,5.45314469,2771.6,2771.5,35.0]
[1739558258330,5.45314469,2771.6,2771.5,38.60815]
[1739558259255,6.26334469,2771.6,2771.5,35.0]
[1739558271175,9.87136469,2771.6,2771.5,35.0]
[1739558271476,6.26334469,2771.6,2771.5,35.0]
[1739558273087,9.87136469,2771.6,2771.5,35.0]
[1739558276276,6.26334469,2771.6,2771.5,35.0]
[1739558276451,9.87136469,2771.6,2771.5,35.0]
[1739558278895,9.87136469,2771.6,2771.2,3.60849]
[1739558279586,5.45314469,2771.6,2771.5,3.60815]
[1739558279773,0.06314469,2771.6,2771.5,7.42275]
[1739558279978,0.06314469,2771.6,2771.5,42.42275]
[1739558280202,5.39,2772.1,2771.7,3.60778]
[1739558280492,5.39,2772.1,2771.8,3.6077]
[1739558280785,0.05384877,2772.0,2771.9,3.60759]
[1739558280957,0.05384877,2772.0,2771.8,7.21543]
[1739558281153,5.44384877,2772.0,2771.9,4.45830364]
[1739558281377,5.44384877,2772.0,2771.9,43.22882836]
[1739558281791,5.39,2772.0,2771.9,43.22882836]
[1739558282173,0.7746,2772.9,2772.1,0.8146]
[1739558282174,5.39,2772.6,2772.1,0.8146]
[1739558282491,5.39,2772.6,2772.5,10.43652036]
[1739558282698,5.39,2773.2,2772.5,3.82967036]
[1739558282869,5.39,2773.2,2772.6,3.0]
[1739558283064,5.39,2773.2,2772.7,3.6065]
[1739558283283,5.39,2773.2,2772.8,3.60645]
[1739558283468,5.39,2773.2,2772.9,3.60628]
[1739558283665,5.39,2773.2,2773.1,35.0]
[1739558284165,8.99594,2773.2,2773.1,35.0]
[1739558284664,9.54594,2773.2,2773.1,35.0]
[1739558284868,10.30854,2773.2,2773.1,35.0]
[1739558285281,0.7626,2772.6,2772.1,3.60731]
[1739558285583,5.39,2772.5,2772.2,3.60722]
[1739558285784,5.39,2772.5,2772.2,4.328673]
[1739558286090,5.39,2772.5,2772.4,7.36128]
[1739558286318,5.39,2772.5,2772.4,42.36128]
[1739558290888,3.01507036,2773.0,2772.4,35.0]
[1739558291092,4.39835,2772.5,2772.4,35.0]
[1739558291492,4.45095162,2772.5,2772.4,35.0]
[1739558291999,10.39095162,2772.5,2772.4,35.0]
[1739558292198,11.11498636,2772.5,2772.4,35.0]
[1739558293503,0.7915,2771.8,2771.3,3.60838]
[1739558293711,5.39,2771.7,2771.4,3.721681]
[1739558294000,5.44186581,2771.7,2771.4,3.721681]
[1739558294201,5.44186581,2771.7,2771.4,7.329951]
[1739558294502,5.44186581,2771.7,2771.6,35.0]
[1739558295270,9.04975581,2771.7,2771.6,35.0]
[1739558300819,10.39125581,2771.7,2771.6,35.0]
[1739558302508,13.40632617,2771.7,2771.6,35.0]
[1739558302674,3.60828,2771.4,2771.3,0.0728975]
[1739558302880,0.7544,2770.4,2770.0,3.61001]
[1739558303111,0.7544,2770.4,2770.1,3.0]
[1739558303405,3.61006,2770.1,2769.5,0.8312]
[1739558303581,5.39,2770.0,2769.5,3.61068]
[1739558303782,5.43967328,2770.0,2769.9,35.0]
[1739558304188,13.36924364,2770.0,2769.9,35.0]
[1739558307999,13.36924364,2770.0,2768.9,3.61144]
[1739558308000,9.20914364,2770.0,2768.9,3.61144]
[1739558308211,9.20914364,2770.0,2769.1,3.6112]
[1739558308212,0.55,2769.6,2769.1,3.6112]
[1739558308507,4.16063,2769.6,2769.5,35.0]
[1739558308704,10.30503,2769.6,2769.5,35.0]
[1739558309919,4.3662,2768.7,2768.1,0.8362]
[1739558310087,5.39,2768.6,2768.1,3.61756]
[1739558310412,5.43790323,2768.6,2768.4,35.0]
[1739558311003,5.43790323,2768.6,2768.4,38.61217]
[1739558311317,5.43790323,2768.6,2768.4,35.0]
[1739558311516,5.43790323,2768.6,2768.4,38.61208]
[1739558311713,5.39,2768.6,2768.5,3.61206]
[1739558311916,5.39,2768.6,2768.4,7.2242]
[1739558312225,5.39,2768.6,2768.5,38.61206]
[1739558312388,5.39,2768.6,2768.5,35.0]
[1739558313218,5.94,2768.6,2768.5,35.0]
[1739558313417,9.55193,2768.6,2768.5,35.0]
[1739558313953,10.35273464,2768.6,2768.5,35.0]
[1739558314318,5.43640464,2768.6,2768.5,35.0]
[1739558314656,5.43640464,2768.6,2768.5,38.5]
[1739558314818,5.43640464,2768.6,2768.5,35.0]
[1739558316101,5.43640464,2768.6,2768.5,39.44326]
[1739558316583,5.39,2768.6,2768.5,38.61206]
[1739558316699,5.39,2768.6,2768.5,35.2]
[1739558317106,5.43624386,2768.6,2768.5,38.81206]
[1739558317401,5.43624386,2768.6,2768.5,41.55933537]
[1739558317706,5.43624386,2768.6,2768.5,44.55933537]
[1739558317910,5.39,2768.6,2768.5,44.55933537]
[1739558318837,5.39,2768.6,2768.5,37.94727537]
[1739558319024,5.39,2768.6,2768.5,35.2]
[1739558320355,10.35283,2768.6,2768.5,35.2]
[1739558320500,4.96283,2768.6,2768.5,35.2]
[1739558320995,5.00876102,2768.6,2768.5,35.2]
[1739558321202,0.84683102,2768.6,2768.5,35.2]
[1739558321432,0.04593102,2768.6,2768.5,35.2]
[1739558321632,0.55,2768.7,2768.5,35.2]
[1739558321834,3.65785728,2768.6,2768.5,35.2]
[1739558322505,4.20785728,2768.6,2768.5,35.2]
[1739558323415,9.59785728,2768.6,2768.5,35.2]
[1739558323936,10.39875728,2768.6,2768.5,35.2]
[1739558329275,3.61245,2768.2,2768.1,0.005]
[1739558329563,13.36842036,2768.2,2768.1,0.005]
[1739558329764,13.41377674,2768.2,2768.1,35.005]
[1739558330652,14.12128813,2768.2,2768.1,35.005]
[1739558331291,6.23625638,2768.2,2768.1,35.005]
[1739558331500,9.84870638,2768.2,2768.1,35.005]
[1739558331720,10.39870638,2768.2,2768.1,35.005]
[1739558332871,9.59780638,2768.2,2768.1,35.005]
[1739558333686,9.04780638,2768.2,2768.1,35.005]
[1739558333833,12.06287674,2768.2,2768.1,35.005]
[1739558334033,12.83797674,2768.2,2768.1,35.005]
[1739558336176,9.27290638,2768.2,2768.1,35.005]
[1739558336553,9.04780638,2768.2,2768.1,35.005]
[1739558336969,5.43535638,2768.2,2768.1,35.005]
[1739558337142,4.88535638,2768.2,2768.1,35.7707597]
[1739558337341,9.04780638,2768.2,2768.1,35.005]
[1739558340178,5.43535638,2768.2,2768.1,35.005]
[1739558340380,9.04780638,2768.2,2768.1,35.005]
[1739558342281,9.82290638,2768.2,2768.1,0.005]
[1739558342479,3.61284,2767.9,2767.8,0.005]
[1739558342779,9.00284,2767.9,2767.8,35.005]
[1739558342978,9.04739858,2767.9,2767.8,35.005]
[1739558343283,9.82249858,2767.9,2767.8,35.005]
[1739558343904,9.82249858,2767.9,2767.8,0.005]
[1739558344599,9.82249858,2767.9,2767.8,35.005]
[1739558344963,9.82249858,2767.9,2767.1,0.1565949]
[1739558344964,4.16376,2767.2,2767.1,0.1565949]
[1739558345144,9.00376,2767.2,2767.1,0.1565949]
[1739558345345,12.8380459,2767.2,2767.1,0.1565949]
[1739558345649,4.93951,2766.7,2766.6,0.005]
[1739558345874,7.95458036,2766.7,2766.6,35.005]
[1739558346070,7.99818842,2766.7,2766.6,35.005]
[1739558346282,0.7751,2766.0,2765.2,3.61628]
[1739558346452,3.6158,2765.7,2764.9,1.2897303]
[1739558346644,3.6158,2765.7,2764.9,3.82280303]
[1739558346645,4.16592,2765.6,2764.9,3.82280303]
[1739558346849,0.7506,2765.3,2764.5,3.61728]
[1739558347049,4.16638,2765.2,2764.2,0.7716]
[1739558347251,0.59186004,2765.2,2765.1,35.0]
[1739558347497,0.04186004,2765.2,2765.1,35.0]
[1739558347651,0.17965499,2765.7,2765.1,35.0]
[1739558347851,0.59184505,2765.2,2765.1,35.0]
[1739558348045,4.16637,2765.2,2765.1,35.0]
[1739558348248,4.20759677,2765.2,2765.1,35.0]
[1739558348695,0.59122677,2765.2,2765.1,35.0]
[1739558349397,3.61518,2766.2,2765.4,3.61602]
[1739558349599,1.96e-06,2765.2,2765.1,10.41198296]
[1739558349768,0.7506,2766.7,2765.8,3.6155]
[1739558349966,3.61463,2766.6,2765.9,3.61543]
[1739558350511,3.61463,2766.6,2766.5,35.0]
[1739558350889,7.16463,2766.6,2766.5,35.0]
[1739558351079,3.61594,2765.6,2764.9,3.61668]
[1739558351281,0.55,2765.3,2764.9,0.800525]
[1739558351586,3.61587,2765.6,2764.9,3.61668]
[1739558351983,3.61587,2765.6,2765.5,35.0]
[1739558352615,4.16587,2765.6,2765.5,35.0]
[1739558356590,3.61685,2764.9,2764.3,0.1515949]
[1739558356799,0.55,2764.8,2764.3,0.1515949]
[1739558357247,0.55,2764.8,2764.7,35.0]
[1739558357542,4.16689,2764.8,2764.7,35.0]
[1739558357688,0.55,2764.8,2764.7,35.0]
[1739558357890,3.61689,2764.8,2764.3,0.1515949]
[1739558358142,0.55,2764.4,2764.3,0.1515949]
[1739558358287,4.16742,2764.4,2764.3,0.1515949]
[1739558358488,4.16742,2764.4,2764.3,35.1515949]